[Event "Early-Titled-Tuesday-Blitz-February-27-2024"]
[Site "Chess.com"]
[Date "2024.02.27"]
[Round "1"]
[White "marcodobrikov"]
[Black "BeardedNM"]
[Result "1-0"]
[WhiteElo "2598"]
[BlackElo "2220"]
[TimeControl "180+1"]
[EndTime "8:06:57 PST"]
[Termination "marcodobrikov won by resignation"]

1. c4 {[%clk 0:03:00.9]} 1... e6 {[%clk 0:03:00]} 2. g3 {[%clk 0:02:59.9]} 2...
d5 {[%clk 0:03:00.4]} 3. cxd5 {[%clk 0:02:57.8]} 3... exd5 {[%clk 0:03:00]} 4.
Bg2 {[%clk 0:02:58.2]} 4... Nf6 {[%clk 0:03:00.6]} 5. d4 {[%clk 0:02:57.6]} 5...
Be7 {[%clk 0:02:59.4]} 6. Bg5 {[%clk 0:02:57.2]} 6... O-O {[%clk 0:02:59.6]} 7.
Nc3 {[%clk 0:02:56.4]} 7... c6 {[%clk 0:03:00]} 8. e3 {[%clk 0:02:56.8]} 8...
Re8 {[%clk 0:02:59.3]} 9. Nge2 {[%clk 0:02:56.5]} 9... Nbd7 {[%clk 0:02:57]} 10.
Qb1 {[%clk 0:02:55.5]} 10... a5 {[%clk 0:02:53.1]} 11. O-O {[%clk 0:02:55.5]}
11... Nf8 {[%clk 0:02:52.4]} 12. a3 {[%clk 0:02:54.7]} 12... a4 {[%clk
0:02:51.9]} 13. Qc2 {[%clk 0:02:53.2]} 13... Qa5 {[%clk 0:02:37.8]} 14. Rac1
{[%clk 0:02:49.3]} 14... Ne6 {[%clk 0:02:27.6]} 15. Bxf6 {[%clk 0:02:48.8]}
15... Bxf6 {[%clk 0:02:27.5]} 16. Na2 {[%clk 0:02:41.3]} 16... g6 {[%clk
0:02:21]} 17. Nb4 {[%clk 0:02:40.8]} 17... Ng7 {[%clk 0:02:10.1]} 18. Nxc6
{[%clk 0:02:37.3]} 18... bxc6 {[%clk 0:02:03]} 19. Qxc6 {[%clk 0:02:38.2]} 19...
Be6 {[%clk 0:01:34.3]} 20. Rc5 {[%clk 0:02:37.3]} 20... Qa6 {[%clk 0:01:29.1]}
21. Qxa6 {[%clk 0:02:36.9]} 21... Rxa6 {[%clk 0:01:30]} 22. Bxd5 {[%clk
0:02:32.3]} 22... Bxd5 {[%clk 0:00:53.6]} 23. Rxd5 {[%clk 0:02:33.2]} 23... Rb8
{[%clk 0:00:50]} 24. Rb1 {[%clk 0:02:22.3]} 24... Rab6 {[%clk 0:00:48.7]} 25.
Nc3 {[%clk 0:02:22]} 25... Rxb2 {[%clk 0:00:45]} 26. Rxb2 {[%clk 0:02:22.9]}
26... Rxb2 {[%clk 0:00:44.4]} 27. Nxa4 {[%clk 0:02:22.9]} 27... Ra2 {[%clk
0:00:37.9]} 28. Ra5 {[%clk 0:02:21.1]} 28... h5 {[%clk 0:00:26.4]} 29. Ra8+
{[%clk 0:02:19.1]} 29... Kh7 {[%clk 0:00:25.4]} 30. Nc5 {[%clk 0:02:19.5]} 30...
Be7 {[%clk 0:00:23.7]} 31. a4 {[%clk 0:02:16.1]} 31... Bxc5 {[%clk 0:00:21.7]}
32. dxc5 {[%clk 0:02:17]} 32... Rc2 {[%clk 0:00:19.9]} 33. Rc8 {[%clk
0:02:03.4]} 33... Rc4 {[%clk 0:00:18.2]} 34. a5 {[%clk 0:02:02.3]} 34... Ne6
{[%clk 0:00:18.3]} 35. c6 {[%clk 0:02:02.1]} 35... Ra4 {[%clk 0:00:17.8]} 36.
Ra8 {[%clk 0:01:56.8]} 36... Rc4 {[%clk 0:00:17.2]} 37. Ra6 {[%clk 0:01:54.8]}
37... Nc7 {[%clk 0:00:15.3]} 38. Rb6 {[%clk 0:01:54.3]} 38... Ra4 {[%clk
0:00:13.2]} 39. Rb7 {[%clk 0:01:54.6]} 39... Ne6 {[%clk 0:00:11.2]} 40. Rxf7+
{[%clk 0:01:53.4]} 40... Kg8 {[%clk 0:00:11.8]} 41. Rf6 {[%clk 0:01:52.8]} 41...
Nf8 {[%clk 0:00:11.5]} 42. c7 {[%clk 0:01:26.3]} 42... Rc4 {[%clk 0:00:11.5]}
43. a6 {[%clk 0:01:22.4]} 43... Rxc7 {[%clk 0:00:11.3]} 44. Rb6 {[%clk
0:01:23.3]} 44... Ra7 {[%clk 0:00:11]} 45. h4 {[%clk 0:01:23.5]} 45... Nd7
{[%clk 0:00:09.3]} 46. Rb7 {[%clk 0:01:21.9]} 46... Rxb7 {[%clk 0:00:09.5]} 47.
axb7 {[%clk 0:01:21.5]} 47... Kf7 {[%clk 0:00:09.7]} 48. Kg2 {[%clk 0:01:21.5]}
48... Ke6 {[%clk 0:00:10.1]} 49. Kf3 {[%clk 0:01:22.1]} 49... Kd5 {[%clk
0:00:10.2]} 50. Kf4 {[%clk 0:01:22.1]} 50... Kc6 {[%clk 0:00:09]} 51. Kg5 {[%clk
0:01:22.5]} 51... Kxb7 {[%clk 0:00:08.9]} 52. Kxg6 {[%clk 0:01:22.8]} 52... Kc6
{[%clk 0:00:09.2]} 53. Kxh5 {[%clk 0:01:23.2]} 53... Kd5 {[%clk 0:00:09.8]} 54.
Kg6 {[%clk 0:01:22.1]} 54... Ke4 {[%clk 0:00:10]} 55. h5 {[%clk 0:01:21.4]}
55... Kf3 {[%clk 0:00:10]} 56. h6 {[%clk 0:01:21]} 56... Kxf2 {[%clk 0:00:09.7]}
57. Kg7 {[%clk 0:01:21.5]} 1-0

[Event "Early-Titled-Tuesday-Blitz-February-27-2024"]
[Site "Chess.com"]
[Date "2024.02.27"]
[Round "1"]
[White "maximnovik"]
[Black "SuperBlitz2013"]
[Result "1-0"]
[WhiteElo "2594"]
[BlackElo "2211"]
[TimeControl "180+1"]
[EndTime "8:06:59 PST"]
[Termination "maximnovik won by resignation"]

1. e4 {[%clk 0:03:00.9]} 1... e5 {[%clk 0:02:59.3]} 2. Nf3 {[%clk 0:03:00]} 2...
Nc6 {[%clk 0:02:59.4]} 3. Bb5 {[%clk 0:02:59.1]} 3... a6 {[%clk 0:02:59.3]} 4.
Ba4 {[%clk 0:02:58.5]} 4... Nf6 {[%clk 0:02:59.1]} 5. d3 {[%clk 0:02:57.8]} 5...
d6 {[%clk 0:02:58.6]} 6. c3 {[%clk 0:02:53.3]} 6... g6 {[%clk 0:02:50.4]} 7. O-O
{[%clk 0:02:52.7]} 7... Bg7 {[%clk 0:02:47]} 8. Re1 {[%clk 0:02:52.2]} 8... O-O
{[%clk 0:02:38.3]} 9. h3 {[%clk 0:02:49.2]} 9... h6 {[%clk 0:02:37.6]} 10. Bxc6
{[%clk 0:02:47.7]} 10... bxc6 {[%clk 0:02:37.2]} 11. d4 {[%clk 0:02:48.2]} 11...
Qe7 {[%clk 0:02:18.6]} 12. b3 {[%clk 0:02:41.5]} 12... Re8 {[%clk 0:02:16.3]}
13. Ba3 {[%clk 0:02:19.2]} 13... c5 {[%clk 0:01:45.9]} 14. dxc5 {[%clk
0:02:07.3]} 14... dxc5 {[%clk 0:01:46.8]} 15. Nbd2 {[%clk 0:02:06.8]} 15... Bb7
{[%clk 0:01:46.9]} 16. Qc2 {[%clk 0:02:05.3]} 16... Nh5 {[%clk 0:01:41.8]} 17.
Nc4 {[%clk 0:02:03.7]} 17... Rad8 {[%clk 0:01:36.3]} 18. Rad1 {[%clk 0:01:59.3]}
18... Nf4 {[%clk 0:01:35.8]} 19. Bc1 {[%clk 0:01:55]} 19... g5 {[%clk
0:01:31.4]} 20. Ne3 {[%clk 0:01:53.4]} 20... Qe6 {[%clk 0:01:20.6]} 21. c4
{[%clk 0:01:33.3]} 21... Kh7 {[%clk 0:01:02.6]} 22. Nf5 {[%clk 0:01:31.8]} 22...
Bf6 {[%clk 0:01:02.6]} 23. Be3 {[%clk 0:01:27.5]} 23... Qc6 {[%clk 0:01:00.5]}
24. Nd2 {[%clk 0:01:12.4]} 24... Bc8 {[%clk 0:00:59.3]} 25. f3 {[%clk 0:01:07]}
25... Nd3 {[%clk 0:00:45.9]} 26. Rf1 {[%clk 0:01:05]} 26... Nb4 {[%clk
0:00:43.1]} 27. Qb1 {[%clk 0:01:02.9]} 27... Rd3 {[%clk 0:00:35.6]} 28. a3
{[%clk 0:00:58.8]} 28... Bxf5 {[%clk 0:00:34.7]} 29. exf5 {[%clk 0:00:56.9]}
29... Rxe3 {[%clk 0:00:28.8]} 30. axb4 {[%clk 0:00:56.4]} 30... e4 {[%clk
0:00:13.2]} 31. Nxe4 {[%clk 0:00:52.6]} 31... Bd4 {[%clk 0:00:13.4]} 32. Kh1
{[%clk 0:00:46.9]} 32... Kg8 {[%clk 0:00:04.3]} 33. bxc5 {[%clk 0:00:45.2]}
33... Bxc5 {[%clk 0:00:04.4]} 34. Rd5 {[%clk 0:00:40.5]} 34... R8xe4 {[%clk
0:00:01.8]} 35. fxe4 {[%clk 0:00:38.8]} 1-0

[Event "Early-Titled-Tuesday-Blitz-February-27-2024"]
[Site "Chess.com"]
[Date "2024.02.27"]
[Round "1"]
[White "Let_it_be_1"]
[Black "DonJuanEGenaro"]
[Result "1-0"]
[WhiteElo "2557"]
[BlackElo "2009"]
[TimeControl "180+1"]
[EndTime "8:06:59 PST"]
[Termination "Let_it_be_1 won by checkmate"]

1. e4 {[%clk 0:03:00.9]} 1... c5 {[%clk 0:02:59.9]} 2. Nf3 {[%clk 0:02:59.8]}
2... Nc6 {[%clk 0:02:59.6]} 3. d4 {[%clk 0:03:00]} 3... cxd4 {[%clk 0:02:59.4]}
4. Nxd4 {[%clk 0:03:00.9]} 4... Nf6 {[%clk 0:02:59.3]} 5. Nc3 {[%clk 0:03:00.6]}
5... d6 {[%clk 0:02:59.1]} 6. Be2 {[%clk 0:03:00.4]} 6... e5 {[%clk 0:02:58.7]}
7. Nb3 {[%clk 0:03:00.4]} 7... Be7 {[%clk 0:02:55.9]} 8. O-O {[%clk 0:03:00.4]}
8... O-O {[%clk 0:02:53.7]} 9. f4 {[%clk 0:03:00.7]} 9... a5 {[%clk 0:02:49]}
10. a4 {[%clk 0:03:00]} 10... Nb4 {[%clk 0:02:47.2]} 11. Kh1 {[%clk 0:03:00.1]}
11... exf4 {[%clk 0:02:43]} 12. Bxf4 {[%clk 0:02:58.8]} 12... d5 {[%clk
0:02:42.7]} 13. e5 {[%clk 0:02:56.9]} 13... Ne4 {[%clk 0:02:42]} 14. Bd3 {[%clk
0:02:49.3]} 14... Qb6 {[%clk 0:02:22.9]} 15. Nxe4 {[%clk 0:02:32.9]} 15... dxe4
{[%clk 0:02:20.6]} 16. Bxe4 {[%clk 0:02:31.7]} 16... Be6 {[%clk 0:02:18.9]} 17.
c3 {[%clk 0:01:58.9]} 17... Rfd8 {[%clk 0:02:05.7]} 18. Nd4 {[%clk 0:01:55.8]}
18... Nc6 {[%clk 0:01:58.5]} 19. Qb1 {[%clk 0:01:46.2]} 19... Nxd4 {[%clk
0:01:47.6]} 20. Bxh7+ {[%clk 0:01:41.2]} 20... Kf8 {[%clk 0:01:45.7]} 21. cxd4
{[%clk 0:01:42.1]} 21... Qxd4 {[%clk 0:01:41.9]} 22. Bg3 {[%clk 0:01:31.7]}
22... Rac8 {[%clk 0:01:34.8]} 23. Bf5 {[%clk 0:01:29.6]} 23... Qd5 {[%clk
0:01:03.8]} 24. Bxe6 {[%clk 0:01:28.6]} 24... Qxe6 {[%clk 0:01:02.8]} 25. Qe4
{[%clk 0:01:28.2]} 25... b6 {[%clk 0:00:55.1]} 26. Qh7 {[%clk 0:01:25]} 26...
Qh6 {[%clk 0:00:42.9]} 27. Qf5 {[%clk 0:01:21.1]} 27... f6 {[%clk 0:00:39.2]}
28. Qe6 {[%clk 0:01:09.7]} 28... Rc5 {[%clk 0:00:30.7]} 29. Rae1 {[%clk
0:01:05.3]} 29... Qg5 {[%clk 0:00:19.3]} 30. exf6 {[%clk 0:01:03.7]} 30... Bxf6
{[%clk 0:00:16.4]} 31. Bd6+ {[%clk 0:00:42.3]} 31... Rxd6 {[%clk 0:00:15.9]} 32.
Qxd6+ {[%clk 0:00:42.9]} 32... Kg8 {[%clk 0:00:15.9]} 33. Re8+ {[%clk
0:00:40.4]} 33... Kh7 {[%clk 0:00:15.2]} 34. Qd3+ {[%clk 0:00:32]} 34... Kh6
{[%clk 0:00:09.4]} 35. Rh8# {[%clk 0:00:30.1]} 1-0

[Event "Early-Titled-Tuesday-Blitz-February-27-2024"]
[Site "Chess.com"]
[Date "2024.02.27"]
[Round "1"]
[White "CaspiIsrael"]
[Black "GrotBchess"]
[Result "1-0"]
[WhiteElo "2678"]
[BlackElo "2378"]
[TimeControl "180+1"]
[EndTime "8:07:00 PST"]
[Termination "CaspiIsrael won by resignation"]

1. d4 {[%clk 0:03:00.9]} 1... Nf6 {[%clk 0:02:59.2]} 2. c4 {[%clk 0:02:59.7]}
2... g6 {[%clk 0:02:58.5]} 3. Nc3 {[%clk 0:02:58.3]} 3... Bg7 {[%clk 0:02:58.3]}
4. e4 {[%clk 0:02:57.8]} 4... d6 {[%clk 0:02:57.5]} 5. Be2 {[%clk 0:02:57.5]}
5... O-O {[%clk 0:02:57.2]} 6. Nf3 {[%clk 0:02:57]} 6... e5 {[%clk 0:02:55.7]}
7. O-O {[%clk 0:02:56.7]} 7... Nc6 {[%clk 0:02:54.4]} 8. d5 {[%clk 0:02:54.9]}
8... Ne7 {[%clk 0:02:53.9]} 9. Ne1 {[%clk 0:02:55.4]} 9... a5 {[%clk 0:02:48.9]}
10. Be3 {[%clk 0:02:53.9]} 10... h5 {[%clk 0:02:45.5]} 11. f3 {[%clk 0:02:52.7]}
11... Bd7 {[%clk 0:02:41.9]} 12. c5 {[%clk 0:02:51.5]} 12... Ne8 {[%clk
0:02:36.8]} 13. Nd3 {[%clk 0:02:50.9]} 13... f5 {[%clk 0:02:36.1]} 14. Rc1
{[%clk 0:02:50.6]} 14... f4 {[%clk 0:02:34]} 15. Bf2 {[%clk 0:02:50.5]} 15... g5
{[%clk 0:02:33.7]} 16. h3 {[%clk 0:02:50.4]} 16... Ng6 {[%clk 0:02:33]} 17. Qb3
{[%clk 0:02:48]} 17... Kh7 {[%clk 0:02:19.4]} 18. Qxb7 {[%clk 0:02:47.1]} 18...
Rb8 {[%clk 0:02:18.7]} 19. Qa6 {[%clk 0:02:45.2]} 19... g4 {[%clk 0:02:14.7]}
20. fxg4 {[%clk 0:02:41.7]} 20... hxg4 {[%clk 0:02:13.8]} 21. Bxg4 {[%clk
0:02:40.3]} 21... Bxg4 {[%clk 0:02:11.2]} 22. hxg4 {[%clk 0:02:41.2]} 22... Qg5
{[%clk 0:02:10.5]} 23. Be1 {[%clk 0:02:30]} 23... Qxg4 {[%clk 0:02:09.7]} 24.
Rf3 {[%clk 0:02:30]} 24... Rh8 {[%clk 0:01:58.3]} 25. Nf2 {[%clk 0:02:28.8]}
25... Qg5 {[%clk 0:01:56.1]} 26. Nh3 {[%clk 0:02:25.7]} 26... Qg4 {[%clk
0:01:55.8]} 27. Nb5 {[%clk 0:02:24.4]} 27... Kg8 {[%clk 0:01:34.9]} 28. cxd6
{[%clk 0:02:23.4]} 28... cxd6 {[%clk 0:01:29.7]} 29. a4 {[%clk 0:02:18.8]} 29...
Bf6 {[%clk 0:01:23.1]} 30. b3 {[%clk 0:02:10.3]} 30... Bh4 {[%clk 0:01:21.5]}
31. Nf2 {[%clk 0:01:57.8]} 31... Bxf2+ {[%clk 0:01:15.7]} 32. Bxf2 {[%clk
0:01:58.7]} 32... Nf6 {[%clk 0:00:46.1]} 33. Qxd6 {[%clk 0:01:57.4]} 33... Rf8
{[%clk 0:00:43.1]} 34. Qe6+ {[%clk 0:01:52.3]} 34... Qxe6 {[%clk 0:00:42.3]} 35.
dxe6 {[%clk 0:01:53.2]} 35... Nxe4 {[%clk 0:00:42.5]} 36. Rc7 {[%clk 0:01:45.8]}
36... Re8 {[%clk 0:00:36.3]} 37. Bb6 {[%clk 0:01:33.6]} 37... Rxe6 {[%clk
0:00:35]} 38. Bxa5 {[%clk 0:01:29.1]} 38... Ng3 {[%clk 0:00:29.7]} 39. Rc8+
{[%clk 0:01:27.4]} 39... Nf8 {[%clk 0:00:29.3]} 40. Kf2 {[%clk 0:01:18.3]} 40...
Rh1 {[%clk 0:00:24.5]} 41. Rxg3+ {[%clk 0:01:11.6]} 41... fxg3+ {[%clk
0:00:23.6]} 42. Kxg3 {[%clk 0:01:12.5]} 42... Rg6+ {[%clk 0:00:23.2]} 43. Kf3
{[%clk 0:01:11.6]} 43... Rf1+ {[%clk 0:00:21.6]} 44. Ke4 {[%clk 0:01:11.5]}
44... Rxg2 {[%clk 0:00:18.6]} 45. Kxe5 {[%clk 0:01:06.8]} 45... Rg3 {[%clk
0:00:18.5]} 46. Nd4 {[%clk 0:01:04.2]} 46... Rg5+ {[%clk 0:00:17.6]} 47. Ke4
{[%clk 0:01:01.6]} 47... Rg4+ {[%clk 0:00:16.8]} 48. Ke3 {[%clk 0:00:58]} 48...
Re1+ {[%clk 0:00:15.6]} 49. Bxe1 {[%clk 0:00:57.2]} 1-0

[Event "Early-Titled-Tuesday-Blitz-February-27-2024"]
[Site "Chess.com"]
[Date "2024.02.27"]
[Round "1"]
[White "LuisFSiles"]
[Black "lucasran"]
[Result "1-0"]
[WhiteElo "2327"]
[BlackElo "2619"]
[TimeControl "180+1"]
[EndTime "8:07:00 PST"]
[Termination "LuisFSiles won on time"]

1. e4 {[%clk 0:03:00.9]} 1... c6 {[%clk 0:02:59.8]} 2. d4 {[%clk 0:03:00.4]}
2... d5 {[%clk 0:03:00.7]} 3. exd5 {[%clk 0:03:01]} 3... cxd5 {[%clk 0:03:01.3]}
4. c4 {[%clk 0:03:01.9]} 4... Nf6 {[%clk 0:03:01.9]} 5. Nc3 {[%clk 0:03:02.6]}
5... Nc6 {[%clk 0:03:02.5]} 6. Bg5 {[%clk 0:03:01.9]} 6... dxc4 {[%clk 0:02:54]}
7. Bxc4 {[%clk 0:02:59.3]} 7... Qxd4 {[%clk 0:02:53.8]} 8. Qxd4 {[%clk
0:02:53.6]} 8... Nxd4 {[%clk 0:02:54.7]} 9. O-O-O {[%clk 0:02:53.7]} 9... e5
{[%clk 0:02:55.1]} 10. f4 {[%clk 0:02:53.9]} 10... Bg4 {[%clk 0:02:55.3]} 11.
Nf3 {[%clk 0:02:53.9]} 11... Bxf3 {[%clk 0:02:55.8]} 12. gxf3 {[%clk 0:02:49.3]}
12... Rc8 {[%clk 0:02:52]} 13. fxe5 {[%clk 0:02:36.9]} 13... Rxc4 {[%clk
0:02:32.9]} 14. exf6 {[%clk 0:02:29.6]} 14... Ne6 {[%clk 0:02:20.1]} 15. Rhe1
{[%clk 0:02:21.9]} 15... g6 {[%clk 0:02:03.6]} 16. Kb1 {[%clk 0:01:47.1]} 16...
h6 {[%clk 0:01:53.6]} 17. Bc1 {[%clk 0:01:21.7]} 17... Bb4 {[%clk 0:01:40.4]}
18. Re4 {[%clk 0:01:15]} 18... Rxe4 {[%clk 0:01:28]} 19. Nxe4 {[%clk 0:01:14.2]}
19... Ng5 {[%clk 0:00:57.8]} 20. Rd4 {[%clk 0:01:02.8]} 20... Bf8 {[%clk
0:00:53.3]} 21. Bxg5 {[%clk 0:00:48.6]} 21... hxg5 {[%clk 0:00:53.2]} 22. Nxg5
{[%clk 0:00:47.7]} 22... Rxh2 {[%clk 0:00:16.4]} 23. Re4+ {[%clk 0:00:46.8]}
23... Kd7 {[%clk 0:00:16.7]} 24. Nxf7 {[%clk 0:00:46.3]} 24... Rg2 {[%clk
0:00:06.5]} 25. Ne5+ {[%clk 0:00:36.3]} 25... Kd6 {[%clk 0:00:06.1]} 26. Nc4+
{[%clk 0:00:19.9]} 26... Kd5 {[%clk 0:00:06.2]} 27. Ne3+ {[%clk 0:00:19.2]} 1-0

[Event "Early-Titled-Tuesday-Blitz-February-27-2024"]
[Site "Chess.com"]
[Date "2024.02.27"]
[Round "1"]
[White "urano56"]
[Black "toog"]
[Result "0-1"]
[WhiteElo "2305"]
[BlackElo "2632"]
[TimeControl "180+1"]
[EndTime "8:07:00 PST"]
[Termination "toog won by resignation"]

1. e4 {[%clk 0:03:00.9]} 1... d6 {[%clk 0:02:56.4]} 2. d4 {[%clk 0:02:59.3]}
2... Nf6 {[%clk 0:02:56.2]} 3. Nc3 {[%clk 0:02:58.3]} 3... e5 {[%clk 0:02:56.8]}
4. Nf3 {[%clk 0:02:57.2]} 4... Nbd7 {[%clk 0:02:55.8]} 5. Bg5 {[%clk 0:02:56.7]}
5... Be7 {[%clk 0:02:55.7]} 6. Qd2 {[%clk 0:02:56.6]} 6... c6 {[%clk 0:02:52.8]}
7. a4 {[%clk 0:02:33]} 7... O-O {[%clk 0:02:50.5]} 8. dxe5 {[%clk 0:02:31.1]}
8... dxe5 {[%clk 0:02:46.8]} 9. Bc4 {[%clk 0:02:30.9]} 9... Qc7 {[%clk
0:02:43.5]} 10. O-O {[%clk 0:02:30.5]} 10... h6 {[%clk 0:02:40.1]} 11. Bh4
{[%clk 0:02:30.2]} 11... a6 {[%clk 0:02:29]} 12. a5 {[%clk 0:02:28.2]} 12... Bb4
{[%clk 0:02:27.2]} 13. Kh1 {[%clk 0:02:02.6]} 13... Nxe4 {[%clk 0:02:23.1]} 14.
Qd3 {[%clk 0:01:59]} 14... Ndc5 {[%clk 0:02:21.4]} 15. Qe2 {[%clk 0:01:57.6]}
15... Nxc3 {[%clk 0:02:19.5]} 16. bxc3 {[%clk 0:01:56.6]} 16... Bxc3 {[%clk
0:02:20.4]} 17. Ra3 {[%clk 0:01:55.9]} 17... Bb4 {[%clk 0:02:12.4]} 18. Raa1
{[%clk 0:01:53.2]} 18... e4 {[%clk 0:02:10.2]} 19. Nd4 {[%clk 0:01:49.7]} 19...
Bc3 {[%clk 0:02:09.8]} 20. Rad1 {[%clk 0:01:48.4]} 20... Qxa5 {[%clk 0:02:06.4]}
21. Qh5 {[%clk 0:01:45.8]} 21... Ne6 {[%clk 0:02:01]} 22. Nf5 {[%clk 0:01:41.4]}
22... Nf4 {[%clk 0:01:42.4]} 23. Ne7+ {[%clk 0:01:34.8]} 23... Kh7 {[%clk
0:01:39.9]} 24. Qxa5 {[%clk 0:01:30.4]} 24... Bxa5 {[%clk 0:01:39.1]} 25. Bg3
{[%clk 0:01:28.8]} 25... Nd5 {[%clk 0:01:35.3]} 26. Nxd5 {[%clk 0:01:26.5]}
26... cxd5 {[%clk 0:01:36.2]} 27. Bxd5 {[%clk 0:01:27.1]} 27... Re8 {[%clk
0:01:30.6]} 28. Bxf7 {[%clk 0:01:24.5]} 28... Re7 {[%clk 0:01:30.1]} 29. Bd5
{[%clk 0:01:23.9]} 29... Bf5 {[%clk 0:01:28.4]} 30. Rb1 {[%clk 0:01:23.4]} 30...
Rc8 {[%clk 0:01:22.6]} 31. Bxb7 {[%clk 0:01:21.3]} 31... Rxc2 {[%clk 0:01:21]}
32. Bxa6 {[%clk 0:01:20.2]} 32... e3 {[%clk 0:01:20.2]} 33. fxe3 {[%clk
0:01:15.2]} 33... Be4 {[%clk 0:01:17.9]} 34. Rg1 {[%clk 0:01:04.6]} 34... Bd2
{[%clk 0:01:12.7]} 35. Bf4 {[%clk 0:00:56.5]} 35... g5 {[%clk 0:01:10.6]} 36.
Bd6 {[%clk 0:00:47.8]} 36... Rd7 {[%clk 0:01:05.3]} 37. Bb4 {[%clk 0:00:19.6]}
37... Bxe3 {[%clk 0:00:48.1]} 38. Rbe1 {[%clk 0:00:18]} 38... Bxg1 {[%clk
0:00:42.7]} 39. Rxg1 {[%clk 0:00:17.2]} 39... Rxg2 {[%clk 0:00:40.2]} 0-1

[Event "Early-Titled-Tuesday-Blitz-February-27-2024"]
[Site "Chess.com"]
[Date "2024.02.27"]
[Round "1"]
[White "FairChess_on_YouTube"]
[Black "Honiex"]
[Result "1-0"]
[WhiteElo "3107"]
[BlackElo "2536"]
[TimeControl "180+1"]
[EndTime "8:07:02 PST"]
[Termination "FairChess_on_YouTube won by resignation"]

1. Nf3 {[%clk 0:03:00.9]} 1... d5 {[%clk 0:02:58.5]} 2. g3 {[%clk 0:02:58.9]}
2... c5 {[%clk 0:02:58.5]} 3. Bg2 {[%clk 0:02:58.2]} 3... Nc6 {[%clk 0:02:58.7]}
4. d4 {[%clk 0:02:57]} 4... e6 {[%clk 0:02:58.1]} 5. O-O {[%clk 0:02:56.2]} 5...
cxd4 {[%clk 0:02:57.4]} 6. Nxd4 {[%clk 0:02:55.8]} 6... Bc5 {[%clk 0:02:55.9]}
7. Nb3 {[%clk 0:02:50.8]} 7... Bb6 {[%clk 0:02:55.8]} 8. c4 {[%clk 0:02:50.5]}
8... Nge7 {[%clk 0:02:55.6]} 9. Nc3 {[%clk 0:02:48.5]} 9... O-O {[%clk 0:02:55]}
10. cxd5 {[%clk 0:02:36.9]} 10... exd5 {[%clk 0:02:55.9]} 11. Bf4 {[%clk
0:02:34.8]} 11... d4 {[%clk 0:02:39.7]} 12. Na4 {[%clk 0:02:28.6]} 12... h5
{[%clk 0:02:27.7]} 13. Rc1 {[%clk 0:02:23.5]} 13... h4 {[%clk 0:02:25.6]} 14.
Qd2 {[%clk 0:02:16.4]} 14... Ng6 {[%clk 0:02:19]} 15. Rfd1 {[%clk 0:01:55.8]}
15... Qe7 {[%clk 0:02:13]} 16. Bg5 {[%clk 0:01:38.5]} 16... Qe5 {[%clk 0:01:44]}
17. Nxb6 {[%clk 0:01:18.1]} 17... axb6 {[%clk 0:01:43.7]} 18. f4 {[%clk
0:01:14.8]} 18... Qe6 {[%clk 0:01:28.5]} 19. Nxd4 {[%clk 0:01:12.9]} 19... Nxd4
{[%clk 0:01:26.5]} 20. Qxd4 {[%clk 0:01:13.8]} 20... Rxa2 {[%clk 0:01:09]} 21.
Bd5 {[%clk 0:01:08.4]} 21... Qg4 {[%clk 0:00:53.3]} 22. Bxa2 {[%clk 0:00:57.7]}
22... hxg3 {[%clk 0:00:52.1]} 23. Qe3 {[%clk 0:00:50.4]} 23... gxh2+ {[%clk
0:00:43.6]} 24. Kxh2 {[%clk 0:00:51.2]} 24... Qh5+ {[%clk 0:00:33.1]} 25. Kg1
{[%clk 0:00:49.2]} 25... Kh7 {[%clk 0:00:26]} 26. Bd5 {[%clk 0:00:36.9]} 26...
f6 {[%clk 0:00:23.8]} 27. Qf3 {[%clk 0:00:31.5]} 27... Bg4 {[%clk 0:00:19.5]}
28. Qh1 {[%clk 0:00:30]} 28... fxg5 {[%clk 0:00:18.4]} 29. Qxh5+ {[%clk
0:00:29.2]} 29... Bxh5 {[%clk 0:00:18.6]} 30. fxg5 {[%clk 0:00:28]} 30... Nf4
{[%clk 0:00:18.6]} 31. Be4+ {[%clk 0:00:28]} 31... Kh8 {[%clk 0:00:18]} 32. Kh2
{[%clk 0:00:19.7]} 32... Nxe2 {[%clk 0:00:17.2]} 33. Rf1 {[%clk 0:00:19.5]}
33... Re8 {[%clk 0:00:17.5]} 34. Rc4 {[%clk 0:00:19.5]} 34... b5 {[%clk
0:00:16.9]} 35. Rb4 {[%clk 0:00:19.8]} 35... Nd4 {[%clk 0:00:16.8]} 36. Rxd4
{[%clk 0:00:19.1]} 1-0

[Event "Early-Titled-Tuesday-Blitz-February-27-2024"]
[Site "Chess.com"]
[Date "2024.02.27"]
[Round "1"]
[White "chesstrainer2042"]
[Black "Salem-AR"]
[Result "0-1"]
[WhiteElo "2532"]
[BlackElo "3038"]
[TimeControl "180+1"]
[EndTime "8:07:02 PST"]
[Termination "Salem-AR won by resignation"]

1. e4 {[%clk 0:03:00.9]} 1... c6 {[%clk 0:02:27.8]} 2. Nf3 {[%clk 0:03:00.4]}
2... d5 {[%clk 0:02:27.2]} 3. Nc3 {[%clk 0:03:01]} 3... Bg4 {[%clk 0:02:27.2]}
4. h3 {[%clk 0:03:01.4]} 4... Bh5 {[%clk 0:02:27.8]} 5. exd5 {[%clk 0:02:58.7]}
5... cxd5 {[%clk 0:02:28.7]} 6. g4 {[%clk 0:02:59.1]} 6... Bg6 {[%clk
0:02:29.1]} 7. Bb5+ {[%clk 0:02:58.5]} 7... Nc6 {[%clk 0:02:28.7]} 8. Ne5 {[%clk
0:02:59]} 8... Rc8 {[%clk 0:02:27.4]} 9. d4 {[%clk 0:02:59.1]} 9... e6 {[%clk
0:02:26.6]} 10. h4 {[%clk 0:02:56.1]} 10... f6 {[%clk 0:02:26.8]} 11. Nxg6
{[%clk 0:02:47.1]} 11... hxg6 {[%clk 0:02:27.7]} 12. Bd3 {[%clk 0:02:47.4]}
12... g5 {[%clk 0:02:20.2]} 13. Bg6+ {[%clk 0:02:40.5]} 13... Kd7 {[%clk
0:02:20.1]} 14. h5 {[%clk 0:02:39.2]} 14... Nge7 {[%clk 0:02:19.3]} 15. Bd3
{[%clk 0:02:34.7]} 15... Nxd4 {[%clk 0:02:18.5]} 16. Be3 {[%clk 0:02:35.1]}
16... Nec6 {[%clk 0:02:11]} 17. a3 {[%clk 0:02:13.3]} 17... Bd6 {[%clk
0:01:57.8]} 18. Bf1 {[%clk 0:02:05.7]} 18... Be5 {[%clk 0:01:57.3]} 19. Bg2
{[%clk 0:02:06.3]} 19... Kc7 {[%clk 0:01:51.2]} 20. Na4 {[%clk 0:01:50.7]} 20...
Kb8 {[%clk 0:01:46.9]} 21. c3 {[%clk 0:01:50.8]} 21... Nb5 {[%clk 0:01:43.5]}
22. Nc5 {[%clk 0:01:49.9]} 22... Qe7 {[%clk 0:01:27.3]} 23. Qb3 {[%clk 0:01:31]}
23... Nd6 {[%clk 0:01:26.8]} 24. Nd3 {[%clk 0:01:21]} 24... Nc4 {[%clk
0:01:22.3]} 25. O-O-O {[%clk 0:00:58.6]} 25... N6a5 {[%clk 0:01:22]} 26. Qa4
{[%clk 0:00:58.7]} 26... Bd6 {[%clk 0:00:49.5]} 27. Kb1 {[%clk 0:00:55.3]} 27...
a6 {[%clk 0:00:38]} 28. Bc1 {[%clk 0:00:47.7]} 28... Rc7 {[%clk 0:00:35.2]} 29.
Rhe1 {[%clk 0:00:47.4]} 29... Qf7 {[%clk 0:00:34.9]} 30. Ka2 {[%clk 0:00:44.7]}
30... Rhc8 {[%clk 0:00:33.7]} 31. Qc2 {[%clk 0:00:37.7]} 31... Nxa3 {[%clk
0:00:29.5]} 32. bxa3 {[%clk 0:00:37.1]} 32... Rxc3 {[%clk 0:00:30.2]} 33. Qe2
{[%clk 0:00:35.8]} 33... Rc2+ {[%clk 0:00:30.4]} 34. Bb2 {[%clk 0:00:34]} 34...
Rxe2 {[%clk 0:00:29.6]} 35. Rxe2 {[%clk 0:00:34.7]} 35... Nc4 {[%clk 0:00:29.7]}
36. Bc1 {[%clk 0:00:33.8]} 36... Qd7 {[%clk 0:00:27.2]} 37. Rde1 {[%clk
0:00:31.7]} 37... Qa4 {[%clk 0:00:27]} 0-1